fUSD/lending_fUSD_20241004
["ID","MTS","AMOUNT","RATE_DAILY","PERIOD"]
[339853365,1728070241213,-300.0,0.00036999,30]
[339853366,1728070241222,-469.47457397,0.00036999,15]
[339853367,1728070241231,-500.0,0.00036999,120]
[339853368,1728070241240,-500.0,0.00036999,120]
[339853369,1728070241250,-500.0,0.00036999,120]
[339853370,1728070241259,-500.0,0.00036999,120]
[339853371,1728070241268,-500.0,0.00036999,120]
[339853372,1728070241278,-500.0,0.00036999,120]
[339853373,1728070241287,-500.0,0.00036999,120]
[339853374,1728070241296,-500.0,0.00036999,120]
[339853375,1728070241305,-500.0,0.00036999,120]
[339853376,1728070241314,-500.0,0.00036999,120]
[339853377,1728070241324,-500.0,0.00036999,120]
[339853378,1728070241333,-500.0,0.00036999,120]
[339853379,1728070241343,-500.0,0.00036999,120]
[339853380,1728070241352,-500.0,0.00036999,120]
[339853381,1728070241362,-500.0,0.00036999,120]
[339853382,1728070241371,-500.0,0.00036999,120]
[339853383,1728070241380,-500.0,0.00036999,120]
[339853384,1728070241390,-500.0,0.00036999,120]
[339853385,1728070241400,-500.0,0.00036999,120]
[339853386,1728070241409,-500.0,0.00036999,120]
[339853387,1728070241418,-500.0,0.00036999,120]
[339853388,1728070241428,-500.0,0.00036999,120]
[339853389,1728070241437,-500.0,0.00036999,120]
[339853390,1728070241446,-500.0,0.00036999,120]
[339853391,1728070241456,-500.0,0.00036999,120]
[339853392,1728070241465,-500.0,0.00036999,120]
[339853393,1728070241475,-500.0,0.00036999,120]
[339853394,1728070241483,-500.0,0.00036999,120]
[339853395,1728070241493,-500.0,0.00036999,120]
[339853396,1728070241502,-500.0,0.00036999,120]
[339853397,1728070241511,-500.0,0.00036999,120]
[339853398,1728070241520,-500.0,0.00036999,120]
[339853399,1728070241530,-500.0,0.00036999,7]
[339853400,1728070241540,-500.0,0.00036999,120]
[339853401,1728070241550,-584.6,0.00036999,120]
[339853402,1728070241560,-500.0,0.00036999,120]
[339853403,1728070241569,-500.0,0.00036999,120]
[339853404,1728070241578,-500.0,0.00036999,120]
[339853405,1728070241588,-254.62106101,0.00036999,120]
[339853406,1728070241597,-500.0,0.00036999,120]
[339853407,1728070241606,-500.0,0.00036999,120]
[339853408,1728070241615,-500.0,0.00036999,120]
[339853409,1728070241625,-500.0,0.00036999,120]
[339853410,1728070241634,-676.97,0.00036999,120]
[339853411,1728070241643,-500.0,0.00036999,120]
[339853412,1728070241653,-500.0,0.00036999,120]
[339853413,1728070241662,-500.0,0.00036999,120]
[339853414,1728070241671,-548.9,0.00036999,120]
[339853415,1728070241681,-2147.24,0.00036999,120]
[339853416,1728070241690,-500.0,0.00036999,120]
[339853417,1728070241700,-500.0,0.00036999,120]
[339853418,1728070241709,-500.0,0.00036999,120]
[339853419,1728070241719,-684.46,0.00036999,120]
[339853420,1728070241728,-500.0,0.00036999,120]
[339853421,1728070241737,-699.83,0.00036999,120]
[339853422,1728070241746,-500.0,0.00036999,120]
[339853423,1728070241755,-500.0,0.00036999,120]
[339853424,1728070241764,-500.0,0.00036999,120]
[339853425,1728070241774,-500.0,0.00036999,120]
[339853426,1728070241783,-646.38,0.00036999,120]
[339853427,1728070241792,-500.0,0.00036999,120]
[339853428,1728070241802,-703.03,0.00036999,120]
[339853429,1728070241811,-500.0,0.00036999,120]
[339853430,1728070241820,-500.0,0.00036999,120]
[339853431,1728070241830,-500.0,0.00036999,120]
[339853432,1728070241840,-3387.55,0.00036999,120]
[339853433,1728070241849,-500.0,0.00036999,120]
[339853434,1728070241858,-500.0,0.00036999,120]
[339853435,1728070241867,-541.52,0.00036999,120]
[339853436,1728070241876,-531.87,0.00036999,120]
[339853437,1728070241886,-500.0,0.00036999,120]
[339853438,1728070241896,-500.0,0.00036999,120]
[339853439,1728070241907,-500.0,0.00036999,120]
[339853440,1728070241917,-500.0,0.00036999,120]
[339853441,1728070241927,-321.63726943,0.00036999,120]
[339853442,1728070241937,-500.0,0.00036999,120]
[339853443,1728070241947,-1101.98,0.00036999,120]
[339853444,1728070241957,-1108.59,0.00036999,120]
[339853445,1728070241967,-1361.14,0.00036999,120]
[339853446,1728070241977,-500.0,0.00036999,120]
[339853447,1728070241987,-500.0,0.00036999,120]
[339853448,1728070241998,-500.0,0.00036999,120]
[339853449,1728070242009,-500.0,0.00036999,120]
[339853450,1728070242019,-500.0,0.00036999,120]
[339853451,1728070242028,-500.0,0.00036999,120]
[339853452,1728070242037,-500.0,0.00036999,120]
[339853453,1728070242047,-500.0,0.00036999,120]
[339853454,1728070242056,-737.12,0.00036999,120]
[339853455,1728070242066,-500.0,0.00036999,120]
[339853456,1728070242075,-500.0,0.00036999,120]
[339853457,1728070242085,-500.0,0.00036999,120]
[339853458,1728070242095,-500.0,0.00036999,120]
[339853459,1728070242104,-658.66,0.00036999,120]
[339853460,1728070242114,-500.0,0.00036999,120]
[339853461,1728070242124,-500.0,0.00036999,120]
[339853462,1728070242135,-536.94,0.00036999,120]
[339853463,1728070242144,-500.0,0.00036999,120]
[339853464,1728070242153,-500.0,0.00036999,120]
[339853465,1728070242162,-536.91,0.00036999,120]
[339853466,1728070242171,-573.08,0.00036999,120]
[339853467,1728070242180,-500.0,0.00036999,120]
[339853468,1728070242189,-500.0,0.00036999,120]
[339853469,1728070242198,-500.0,0.00036999,120]
[339853470,1728070242208,-500.0,0.00036999,120]
[339853471,1728070242216,-500.0,0.00036999,120]
[339853472,1728070242226,-500.0,0.00036999,120]
[339853473,1728070242236,-500.0,0.00036999,120]
[339853474,1728070242246,-500.0,0.00036999,120]
[339853475,1728070242255,-465.27898769,0.00036999,120]
[339853476,1728070242264,-500.0,0.00036999,120]
[339853477,1728070242273,-500.0,0.00036999,120]
[339853478,1728070242282,-500.0,0.00036999,120]
[339853479,1728070242292,-886.72,0.00036999,120]
[339853480,1728070242301,-500.0,0.00036999,120]
[339853481,1728070242311,-500.0,0.00036999,120]
[339853482,1728070242320,-500.0,0.00036999,120]
[339853483,1728070242330,-500.0,0.00036999,120]
[339853484,1728070242340,-1436.55,0.00036999,120]
[339853485,1728070242350,-892.93,0.00036999,120]
[339853486,1728070242360,-590.97,0.00036999,120]
[339853488,1728070242369,-500.0,0.00036999,120]
[339853489,1728070242379,-557.41,0.00036999,120]
[339853490,1728070242389,-500.0,0.00036999,120]
[339853491,1728070242402,-801.49,0.00036999,120]
[339853492,1728070242411,-500.0,0.00036999,120]
[339853493,1728070242419,-736.98,0.00036999,120]
[339853494,1728070242429,-500.0,0.00036999,120]
[339853495,1728070242440,-500.0,0.00036999,120]
[339853496,1728070242449,-507.92,0.00036999,120]
[339853497,1728070242458,-500.0,0.00036999,120]
[339853498,1728070242467,-801.54,0.00036999,120]
[339853499,1728070242477,-500.0,0.00036999,120]
[339853501,1728070242487,-500.0,0.00036999,120]
[339853503,1728070242496,-799.03,0.00036999,120]
[339853505,1728070242505,-500.0,0.00036999,120]
[339853507,1728070242514,-882.0,0.00036999,120]
[339853509,1728070242523,-500.0,0.00036999,120]
[339853511,1728070242532,-500.0,0.00036999,120]
[339853513,1728070242541,-500.0,0.00036999,120]
[339853515,1728070242550,-3340.11,0.00036999,120]
[339853519,1728070242559,-500.0,0.00036999,120]
[339853521,1728070242569,-500.0,0.00036999,120]
[339853522,1728070242578,-500.0,0.00036999,120]
[339853523,1728070242587,-500.0,0.00036999,120]
[339853524,1728070242596,-2306.13,0.00036999,120]
[339853525,1728070242606,-500.0,0.00036999,120]
[339853526,1728070242616,-670.57,0.00036999,120]
[339853527,1728070242626,-500.0,0.00036999,120]
[339853528,1728070242635,-500.0,0.00036999,120]
[339853529,1728070242645,-358.54,0.00036999,120]
[339853530,1728070242654,-584.81,0.00036999,120]
[339853531,1728070242664,-500.0,0.00036999,120]
[339853532,1728070242673,-500.0,0.00036999,120]
[339853533,1728070242682,-987.91,0.00036999,120]
[339853534,1728070242692,-500.0,0.00036999,120]
[339853535,1728070242701,-500.0,0.00036999,120]
[339853536,1728070242710,-500.0,0.00036999,120]
[339853537,1728070242719,-591.5473955,0.00036999,120]
[339853538,1728070242728,-1804.78,0.00036999,120]
[339853539,1728070242737,-500.0,0.00036999,120]
[339853540,1728070242746,-500.0,0.00036999,120]
[339853541,1728070242755,-500.0,0.00036999,120]
[339853542,1728070242764,-567.82,0.00036999,120]
[339853543,1728070242774,-500.0,0.00036999,120]
[339853544,1728070242783,-561.51,0.00036999,120]
[339853545,1728070242792,-744.51,0.00036999,120]
[339853546,1728070242801,-500.0,0.00036999,120]
[339853547,1728070242810,-689.82,0.00036999,120]
[339853548,1728070242821,-921.01,0.00036999,120]
[339853549,1728070242830,-500.0,0.00036999,120]
[339853550,1728070242840,-500.0,0.00036999,120]
[339853551,1728070242849,-3054.8,0.00036999,120]
[339853552,1728070242858,-500.0,0.00036999,120]
[339853553,1728070242867,-552.58,0.00036999,120]
[339853554,1728070242876,-50000.0,0.00037,15]
[339853555,1728070242885,-187278.63898437,0.00037,15]
[339853556,1728070242901,-564.30319157,0.00037,15]
[339853557,1728070242919,-500.0,0.00036999,120]
[339853558,1728070242928,-1595.0,0.00037,15]
[339853559,1728070242939,-922.5,0.00037,15]
[339853560,1728070242950,-2887.610294,0.00037,15]
[339853595,1728070243396,-500.0,0.00036989,120]
[339853597,1728070243405,-1519.51760725,0.00037,15]
[339853598,1728070243416,-749.40000123,0.00037,15]
[339853824,1728070245756,-252.86,0.000364,2]
[339853826,1728070245765,-586.83,0.00036989,120]
[339853828,1728070245774,-500.0,0.00036989,120]
[339853829,1728070245783,-500.0,0.00036989,120]
[339853831,1728070245792,-500.0,0.00036999,120]
[339853833,1728070245802,-515.26832563,0.00036999,120]
[339853836,1728070245811,-20925.96983047,0.00037,15]
[339853838,1728070245823,-6678.92024389,0.00037,15]
[339853840,1728070245834,-528.93924628,0.00037,15]
[339853843,1728070245850,-577.48,0.00037,15]
[339853852,1728070245926,-30406.67112,0.00037,15]
[339854285,1728070592473,250.0,0.00013,2]
[339854286,1728070684344,164.8,0.00010959,2]
[339854287,1728070997223,500.0,0.0001087,2]
[339854288,1728070997636,500.0,0.00010871,2]
[339854289,1728070998223,500.0,0.00010871,2]
[339854319,1728071431795,-1933.869,0.000299,3]
[339854320,1728071431805,-150.11417465,0.0003,120]
[339854321,1728071431816,-300.0,0.00032175,2]
[339854322,1728071431826,-177.589,0.00032337,32]
[339854323,1728071431999,-311.14,0.00033256,2]
[339854324,1728071432022,-299.99,0.00034548,30]
[339854325,1728071432032,-150.34547022,0.00034548,2]
[339854326,1728071432044,-349.64452978,0.00034548,2]
[339854327,1728071432053,-98.54729871,0.00034548,10]
[339854328,1728071432065,-51.45270129,0.00034548,10]
[339854329,1728071432074,-229.91556472,0.00034994,2]
[339854330,1728071432095,-579.64221826,0.00034994,2]
[339854331,1728071432106,-720.38221702,0.00034994,2]
[339854332,1728071432116,-150.0,0.00035,120]
[339854333,1728071432126,-178.26,0.00035005,2]
[339854334,1728071432135,-250.0,0.00035041,2]
[339854335,1728071432145,-186.09,0.00035044,120]
[339854336,1728071432154,-168.02,0.00035047,2]
[339854337,1728071432163,-450.0,0.00035047,2]
[339854338,1728071432173,-290.61,0.00035087,2]
[339854339,1728071432183,-225.32,0.00035087,60]
[339854340,1728071432193,-409.6,0.00035095,2]
[339854341,1728071432203,-250.0,0.00035103,2]
[339854342,1728071432213,-150.0,0.00035105,2]
[339854343,1728071432222,-4391.79000006,0.00035106,2]
[339854344,1728071432238,-4137.14535012,0.00035106,2]
[339854345,1728071432253,-300.0,0.00035106,2]
[339854448,1728071437771,-32953.40853325,0.00033256,2]
[339854449,1728071437781,-362.08464982,0.00035106,2]
[339854450,1728071437791,-1326.0,0.00035116,2]
[339854451,1728071437800,-156.89,0.00035124,2]
[339854452,1728071437811,-150.0,0.00035125,2]
[339854453,1728071437824,-250.0,0.00035127,120]
[339854454,1728071437834,-695.42282509,0.00035183,2]
[339854455,1728071437885,-753.02717491,0.00035183,2]
[339854456,1728071437895,-203.97,0.00035207,120]
[339854457,1728071437905,-311.14,0.0003552,2]
[339854458,1728071437916,-155.58,0.00035529,120]
[339854459,1728071437928,-590.4,0.00036102,2]
[339854460,1728071437938,-157.100504,0.00036148,120]
[339854461,1728071437947,-300.0,0.00036178,2]
[339854462,1728071437956,-393.85,0.00036192,2]
[339854463,1728071437967,-157.100504,0.00036248,119]
[339854464,1728071437976,-151.100504,0.00036348,120]
[339854465,1728071437985,-190.42,0.00036366,2]
[339854466,1728071437996,-185.64,0.00036416,120]
[339854468,1728071438005,-157.100504,0.00036448,119]
[339854469,1728071438014,-151.100504,0.00036548,120]
[339854470,1728071438023,-94.19329121,0.000366,13]
[339854475,1728071439918,-405.80670879,0.000366,13]
[339854476,1728071439929,-157.100504,0.00036648,120]
[339854477,1728071439940,-174.65527374,0.000367,13]
[339854478,1728071439953,-690.19459664,0.000367,13]
[339854479,1728071439975,-235.15012962,0.000367,13]
[339854480,1728071439984,-151.100504,0.00036748,120]
[339854481,1728071439993,-560.14936628,0.000368,13]
[339854482,1728071440006,-670.0,0.000368,13]
[339854483,1728071440017,-369.85063372,0.000368,13]
[339854484,1728071440027,-157.100504,0.00036848,119]
[339854485,1728071440036,-168.04886228,0.0003688,2]
[339854486,1728071440047,-2961.7756547,0.0003688,2]
[339854520,1728071442846,-305.7723,0.000298,2]
[339854521,1728071442856,-256.71769992,0.0003688,2]
[339854522,1728071442904,-48346.7277831,0.0003688,2]
[339854523,1728071442914,-5594.61101321,0.00036888,15]
[339854524,1728071442923,-158.08404933,0.00036888,2]
[339854525,1728071442932,-184.34276654,0.00036889,16]
[339854526,1728071442941,-493.199,0.00036889,2]
[339854527,1728071442950,-2458.2127087,0.0003689,9]
[339854528,1728071442960,-323.47614328,0.000369,9]
[339854529,1728071442969,-2200.0,0.000369,13]
[339854530,1728071442978,-175.57734159,0.000369,2]
[339854531,1728071442988,-151.100504,0.00036948,120]
[339854532,1728071442997,-372.43310373,0.00036962,2]
[339854533,1728071443006,-4092.36417656,0.00036979,6]
[339854534,1728071443015,-155509.838709,0.0003698,6]
[339854535,1728071443024,-500.0,0.00036986,120]
[339854536,1728071443033,-590.81,0.00036986,120]
[339854537,1728071443043,-913.11,0.00036986,120]
[339854538,1728071443052,-500.0,0.00036988,120]
[339854539,1728071443062,-1926.57,0.00036988,120]
[339854540,1728071443071,-3550.74,0.00036988,120]
[339854541,1728071443080,-500.0,0.00036988,120]
[339854542,1728071443089,-500.0,0.00036988,120]
[339854543,1728071443099,-500.0,0.00036988,120]
[339854544,1728071443108,-500.0,0.00036988,120]
[339854545,1728071443118,-500.0,0.00036988,120]
[339854546,1728071443130,-500.0,0.00036988,120]
[339854547,1728071443140,-500.0,0.00036988,120]
[339854548,1728071443149,-500.0,0.00036988,120]
[339854551,1728071443161,-792.43,0.00036988,120]
[339854552,1728071443171,-546.22,0.00036988,120]
[339854554,1728071443181,-500.0,0.00036988,120]
[339854556,1728071443190,-500.0,0.00036988,120]
[339854558,1728071443201,-500.0,0.00036988,120]
[339854560,1728071443210,-1665.58,0.00036988,120]
[339854561,1728071443221,-395.38459692,0.00036988,120]
[339854562,1728071443230,-2049.85,0.00036988,120]
[339854563,1728071443239,-572.26,0.00036988,120]
[339854564,1728071443248,-500.0,0.00036988,120]
[339854565,1728071443257,-698.84,0.00036988,120]
[339854566,1728071443266,-500.0,0.00036988,120]
[339854567,1728071443276,-500.0,0.00036988,120]
[339854568,1728071443286,-500.0,0.00036988,120]
[339854569,1728071443294,-500.0,0.00036988,120]
[339854570,1728071443304,-1394.56,0.00036988,120]
[339854571,1728071443313,-1394.58,0.00036988,120]
[339854572,1728071443323,-500.0,0.00036988,120]
[339854574,1728071443332,-500.0,0.00036988,120]
[339854577,1728071443342,-500.0,0.00036988,120]
[339854579,1728071443351,-500.0,0.00036988,120]
[339854582,1728071443360,-562.38,0.00036988,120]
[339854585,1728071443370,-500.0,0.00036988,120]
[339854587,1728071443379,-500.0,0.00036988,120]
[339854589,1728071443389,-790.04,0.00036988,120]
[339854591,1728071443399,-500.0,0.00036988,120]
[339854593,1728071443409,-500.0,0.00036988,120]
[339854594,1728071443418,-642.87,0.00036988,120]
[339854595,1728071443427,-500.0,0.00036988,120]
[339854596,1728071443437,-500.0,0.00036988,120]
[339854597,1728071443447,-500.0,0.00036988,120]
[339854598,1728071443456,-500.0,0.00036988,120]
[339854599,1728071443466,-933.02,0.00036988,120]
[339854600,1728071443475,-500.0,0.00036988,120]
[339854601,1728071443484,-500.0,0.00036988,120]
[339854602,1728071443493,-700.57,0.00036988,120]
[339854603,1728071443502,-631.11,0.00036988,120]
[339854604,1728071443511,-928.67,0.00036988,120]
[339854605,1728071443520,-500.0,0.00036988,120]
[339854606,1728071443530,-1013.12,0.00036988,120]
[339854607,1728071443539,-3246.4,0.00036988,120]
[339854608,1728071443549,-500.0,0.00036988,120]
[339854609,1728071443558,-656.09,0.00036988,120]
[339854610,1728071443567,-500.0,0.00036988,120]
[339854611,1728071443576,-542.91,0.00036988,120]
[339854612,1728071443586,-788.76,0.00036988,120]
[339854613,1728071443595,-500.0,0.00036988,120]
[339854614,1728071443604,-747.32,0.00036988,120]
[339854615,1728071443614,-1192.71,0.00036988,120]
[339854616,1728071443623,-663.12,0.00036988,120]
[339854617,1728071443633,-1348.76,0.00036988,120]
[339854618,1728071443643,-864.01,0.00036988,120]
[339854619,1728071443652,-500.0,0.00036988,120]
[339854620,1728071443661,-1595.44,0.00036988,120]
[339854621,1728071443670,-549.2,0.00036988,120]
[339854622,1728071443680,-1565.69,0.00036988,120]
[339854623,1728071443691,-500.0,0.00036988,120]
[339854624,1728071443699,-610.80481883,0.00036988,120]
[339854625,1728071443709,-500.0,0.00036988,120]
[339854626,1728071443719,-514.54,0.00036988,120]
[339854627,1728071443729,-500.0,0.00036988,120]
[339854628,1728071443739,-500.0,0.00036988,120]
[339854629,1728071443749,-500.0,0.00036988,120]
[339854630,1728071443759,-500.0,0.00036988,120]
[339854631,1728071443771,-788.87,0.00036988,120]
[339854632,1728071443781,-500.0,0.00036988,120]
[339854633,1728071443791,-936.31,0.00036988,120]
[339854634,1728071443800,-708.61,0.00036988,120]
[339854635,1728071443810,-500.0,0.00036988,120]
[339854636,1728071443821,-566.35,0.00036988,120]
[339854637,1728071443832,-782.12,0.00036988,120]
[339854638,1728071443843,-500.0,0.00036988,120]
[339854639,1728071443853,-500.0,0.00036988,120]
[339854640,1728071443863,-765.74,0.00036988,120]
[339854641,1728071443872,-500.0,0.00036988,120]
[339854642,1728071443881,-500.0,0.00036988,120]
[339854643,1728071443891,-659.91,0.00036988,120]
[339854644,1728071443902,-500.0,0.00036988,120]
[339854645,1728071443912,-642.63,0.00036988,120]
[339854646,1728071443922,-500.0,0.00036988,120]
[339854647,1728071443931,-500.0,0.00036988,120]
[339854648,1728071443940,-500.0,0.00036988,120]
[339854649,1728071443949,-1270.33,0.00036988,120]
[339854650,1728071443958,-1729.58,0.00036988,120]
[339854651,1728071443968,-1481.15,0.00036988,120]
[339854652,1728071443976,-500.0,0.00036988,120]
[339854653,1728071443986,-538.12,0.00036988,120]
[339854654,1728071443995,-587.17,0.00036988,120]
[339854655,1728071444004,-500.0,0.00036988,120]
[339854656,1728071444013,-892.8,0.00036988,120]
[339854657,1728071444022,-500.0,0.00036988,120]
[339854658,1728071444031,-500.0,0.00036988,120]
[339854659,1728071444040,-2927.51,0.00036988,120]
[339854660,1728071444050,-500.0,0.00036988,120]
[339854661,1728071444059,-500.0,0.00036988,120]
[339854662,1728071444068,-530.96,0.00036988,120]
[339854663,1728071444077,-1503.25,0.00036988,120]
[339854664,1728071444087,-642.87,0.00036988,120]
[339854665,1728071444096,-508.16,0.00036988,120]
[339854666,1728071444106,-500.0,0.00036988,120]
[339854667,1728071444117,-500.0,0.00036988,120]
[339854668,1728071444127,-500.0,0.00036988,120]
[339854669,1728071444137,-641.99,0.00036988,120]
[339854670,1728071444146,-1628.84,0.00036988,120]
[339854671,1728071444156,-1265.71,0.00036988,120]
[339854672,1728071444166,-500.0,0.00036988,21]
[339854673,1728071444175,-555.67,0.00036988,120]
[339854674,1728071444186,-500.0,0.00036988,120]
[339854675,1728071444196,-500.0,0.00036988,120]
[339854676,1728071444208,-1285.28,0.00036988,120]
[339854677,1728071444219,-500.0,0.00036988,120]
[339854678,1728071444231,-500.0,0.00036988,120]
[339854679,1728071444240,-500.0,0.00036988,120]
[339854680,1728071444251,-500.0,0.00036988,120]
[339854681,1728071444262,-854.27,0.00036988,120]
[339854682,1728071444271,-24554.1850594,0.00036988,6]
[339854683,1728071444280,-16369.4567062,0.00036989,6]
[339854684,1728071444290,-151.83,0.00036989,2]
[339854685,1728071444300,-500.0,0.00036989,120]
[339854686,1728071444309,-572.68903362,0.00036989,120]
[339854687,1728071444320,-500.0,0.00036989,120]
[339854688,1728071444330,-500.0,0.00036989,120]
[339854689,1728071444341,-500.0,0.00036989,120]
[339854690,1728071444350,-500.0,0.00036989,120]
[339854691,1728071444359,-500.0,0.00036989,120]
[339854692,1728071444368,-500.0,0.00036989,120]
[339854693,1728071444377,-500.0,0.00036989,120]
[339854694,1728071444387,-500.0,0.00036989,120]
[339854695,1728071444397,-500.0,0.00036989,120]
[339854696,1728071444406,-500.0,0.00036989,120]
[339854697,1728071444416,-500.0,0.00036989,120]
[339854698,1728071444426,-500.0,0.00036989,120]
[339854699,1728071444437,-500.0,0.00036989,120]
[339854700,1728071444446,-500.0,0.00036989,120]
[339854701,1728071444455,-483.15031679,0.00036989,120]
[339854702,1728071444464,-500.0,0.00036989,120]
[339854703,1728071444473,-257.652575,0.00036989,120]
[339854704,1728071444482,-500.0,0.00036989,120]
[339854705,1728071444492,-500.0,0.00036989,120]
[339854706,1728071444501,-500.0,0.00036989,120]
[339854707,1728071444509,-500.0,0.00036989,120]
[339854708,1728071444517,-560.25,0.00036989,120]
[339854709,1728071444527,-500.34972707,0.00036989,120]
[339854710,1728071444539,-500.0,0.00036989,120]
[339854711,1728071444548,-500.0,0.00036989,120]
[339854712,1728071444557,-500.0,0.00036989,120]
[339854713,1728071444567,-500.0,0.00036989,120]
[339854714,1728071444576,-586.09,0.00036989,120]
[339854715,1728071444585,-500.0,0.00036989,120]
[339854716,1728071444595,-500.0,0.00036989,120]
[339854717,1728071444604,-500.0,0.00036989,120]
[339854718,1728071444614,-500.0,0.00036989,120]
[339854719,1728071444623,-500.0,0.00036989,120]
[339854720,1728071444634,-526.03,0.00036989,120]
[339854721,1728071444643,-500.0,0.00036989,120]
[339854722,1728071444653,-500.0,0.00036989,120]
[339854723,1728071444663,-500.0,0.00036989,120]
[339854724,1728071444672,-500.0,0.00036989,120]
[339854725,1728071444682,-670.67,0.00036989,120]
[339854726,1728071444691,-500.0,0.00036989,120]
[339854727,1728071444700,-500.0,0.00036989,120]
[339854728,1728071444709,-500.0,0.00036989,120]
[339854729,1728071444718,-501.4790958,0.00036989,120]
[339854730,1728071444727,-693.56,0.00036989,120]
[339854731,1728071444736,-500.0,0.00036989,120]
[339854732,1728071444745,-500.0,0.00036989,120]
[339854733,1728071444755,-500.0,0.00036989,120]
[339854734,1728071444764,-500.0,0.00036989,120]
[339854735,1728071444774,-500.0,0.00036989,120]
[339854736,1728071444784,-500.0,0.00036989,120]
[339854737,1728071444793,-500.0,0.00036989,120]
[339854738,1728071444802,-518.96,0.00036989,120]
[339854739,1728071444811,-500.0,0.00036989,120]
[339854740,1728071444824,-500.0,0.00036989,120]
[339854741,1728071444834,-500.0,0.00036989,120]
[339854742,1728071444843,-1056.06,0.00036989,120]
[339854743,1728071444852,-500.0,0.00036989,120]
[339854744,1728071444862,-500.0,0.00036989,120]
[339854745,1728071444870,-562.43,0.00036989,120]
[339854746,1728071444879,-706.27,0.00036989,120]
[339854747,1728071444889,-500.0,0.00036989,120]
[339854748,1728071444899,-500.0,0.00036989,120]
[339854749,1728071444908,-500.0,0.00036989,120]
[339854750,1728071444917,-500.0,0.00036989,120]
[339854751,1728071444926,-500.0,0.00036989,120]
[339854752,1728071444935,-500.0,0.00036989,120]
[339854753,1728071444945,-500.0,0.00036989,120]
[339854754,1728071444954,-500.0,0.00036989,120]
[339854755,1728071444963,-500.0,0.00036989,120]
[339854756,1728071444972,-500.0,0.00036989,120]
[339854757,1728071444981,-590.80730619,0.00036989,120]
[339854758,1728071444990,-500.0,0.00036989,120]
[339854759,1728071445001,-500.0,0.00036989,120]
[339854760,1728071445011,-500.0,0.00036989,120]
[339854761,1728071445020,-500.0,0.00036989,120]
[339854762,1728071445031,-500.0,0.00036989,120]
[339854763,1728071445040,-855.73,0.00036989,120]
[339854764,1728071445050,-500.0,0.00036989,120]
[339854765,1728071445059,-500.0,0.00036989,120]
[339854766,1728071445068,-500.0,0.00036989,120]
[339854767,1728071445077,-500.0,0.00036989,120]
[339854768,1728071445087,-574.90194339,0.00036989,120]
[339854769,1728071445096,-500.0,0.00036989,120]
[339854770,1728071445106,-500.0,0.00036989,120]
[339854771,1728071445115,-500.0,0.00036989,120]
[339854772,1728071445124,-500.0,0.00036989,120]
[339854773,1728071445133,-500.0,0.00036989,120]
[339854774,1728071445142,-845.25,0.00036989,120]